bitfinex/quotes_ETHUSD_20250222
["timestamp","ask_amount","ask_price","bid_price","bid_amount"]
[1740255667210,3.60904,2770.9,2770.4,0.8001]
[1740255667719,3.60906,2770.8,2770.4,0.8001]
[1740255668017,7.21806,2770.9,2770.4,0.8001]
[1740255668228,3.60902,2770.9,2770.4,0.8001]
[1740255668521,7.21807,2770.9,2770.4,1.302974]
[1740255668817,3.60924,2770.7,2770.4,0.8001]
[1740255668989,3.60945,2770.5,2770.2,0.7847]
[1740255669189,7.21899,2770.5,2770.2,0.7847]
[1740255669391,3.60958,2770.4,2770.2,0.7847]
[1740255669596,3.60958,2770.4,2770.2,1.40217]
[1740255669794,3.60927,2770.7,2770.2,1.40217]
[1740255670026,3.60952,2770.5,2770.2,1.40217]
[1740255670222,3.60935,2770.6,2770.2,1.40217]
[1740255670391,3.60933,2770.6,2770.2,6.79217]
[1740255670593,3.60933,2770.6,2770.3,1.040214]
[1740255671221,3.60947,2770.5,2770.3,1.040214]
[1740255672813,3.60966,2770.4,2770.2,6.79217]
[1740255673129,3.60966,2770.4,2770.2,7.05017]
[1740255673426,3.60971,2770.3,2770.2,6.4327]
[1740255679961,3.60971,2770.3,2770.2,5.39]
[1740255681240,3.60971,2770.3,2769.9,0.7772]
[1740255681241,3.60998,2770.1,2769.9,0.7772]
[1740255681545,3.6089,2771.0,2770.3,4.38684]
[1740255681708,3.60923,2770.7,2770.3,0.7772]
[1740255681907,3.60932,2770.6,2770.3,0.7772]
[1740255682109,3.60932,2770.6,2770.3,6.1672]
[1740255682315,4.41071,2771.1,2770.3,6.1672]
[1740255682554,3.60934,2770.6,2770.3,6.1672]
[1740255684637,3.60906,2770.8,2770.3,6.78392]
[1740255684842,4.6142517,2771.9,2770.3,6.78392]
[1740255684843,3.60855,2771.2,2770.5,0.7772]
[1740255685142,3.60855,2771.2,2770.6,4.64452]
[1740255685559,3.60855,2771.2,2770.6,1.0352]
[1740255686108,3.60855,2771.2,2770.6,4.64449]
[1740255686342,3.60855,2771.2,2770.7,1.003449]
[1740255686711,3.60855,2771.2,2770.8,0.7772]
[1740255687312,3.60871,2771.1,2770.8,0.7772]
[1740255689246,3.60855,2771.2,2770.8,0.7772]
[1740255689422,3.6088,2771.0,2770.8,0.7772]
[1740255689623,3.6088,2771.0,2770.8,0.9810649]
[1740255692049,7.2177,2771.0,2770.8,0.7772]
[1740255692249,3.6088,2771.0,2770.8,0.7772]
[1740255692651,3.60893,2770.9,2770.8,0.7772]
[1740255695522,3.60919,2770.7,2770.5,5.39]
[1740255695724,3.60932,2770.6,2770.5,6.385102]
[1740255696356,3.60906,2770.8,2770.5,6.385102]
[1740255696855,3.60921,2770.7,2770.5,6.385102]
[1740255698025,3.60932,2770.6,2770.5,6.127102]
[1740255698229,3.60932,2770.6,2770.5,5.39]
[1740255700132,3.60957,2770.5,2770.2,0.97281239]
[1740255701666,7.21914,2770.5,2770.2,0.97281239]
[1740255701836,3.60957,2770.5,2770.2,0.97281239]
[1740255702032,7.21914,2770.5,2770.2,0.97281239]
[1740255702233,3.60957,2770.5,2770.2,0.97281239]
[1740255702434,3.60955,2770.5,2770.2,0.97281239]
[1740255702633,7.2191,2770.5,2770.2,0.97281239]
[1740255702834,3.6096,2770.4,2770.2,0.97281239]
[1740255703034,3.60971,2770.3,2770.2,0.71481239]
[1740255703867,3.60971,2770.3,2770.1,5.39]
[1740255704045,3.60984,2770.2,2770.1,5.39]
[1740255704458,3.61023,2769.9,2769.8,0.8143]
[1740255704655,3.61023,2769.9,2769.6,5.648]
[1740255704865,3.61023,2769.9,2769.6,6.29423]
[1740255705063,3.61011,2770.0,2769.6,6.29423]
[1740255706248,3.6099,2770.2,2769.6,9.90484]
[1740255706443,4.37094,2770.6,2769.8,4.17356728]
[1740255706746,7.98037,2770.6,2769.9,3.61011]
[1740255706947,3.60957,2770.5,2769.8,4.17356728]
[1740255707167,4.37094,2770.6,2769.8,5.94243701]
[1740255707360,3.60965,2770.4,2769.8,9.55278701]
[1740255707676,7.21933,2770.4,2769.8,5.94243701]
[1740255707871,3.60965,2770.4,2769.8,5.94243701]
[1740255708073,7.21933,2770.4,2769.9,0.9552927]
[1740255708236,3.60965,2770.4,2769.9,0.9552927]
[1740255708640,3.6095,2770.5,2769.9,0.9552927]
[1740255708964,3.6098,2770.3,2769.8,0.8143]
[1740255709366,3.60966,2770.4,2769.8,0.8143]
[1740255710950,7.21933,2770.4,2769.8,0.8143]
[1740255711470,3.60966,2770.4,2769.8,0.8143]
[1740255712067,3.60971,2770.3,2769.8,0.8143]
[1740255712239,3.60966,2770.4,2769.8,1.821579]
[1740255712435,7.21936,2770.4,2769.8,1.821579]
[1740255712678,3.60966,2770.4,2769.8,1.821579]
[1740255712970,3.60965,2770.4,2769.8,1.821579]
[1740255714075,3.60945,2770.5,2769.8,1.821579]
[1740255714239,3.60979,2770.3,2770.0,0.72852038]
[1740255715500,3.60984,2770.2,2770.0,0.72852038]
[1740255715645,3.60997,2770.1,2770.0,0.72852038]
[1740255716340,3.61018,2770.0,2769.6,5.39]
[1740255716548,3.61032,2769.9,2769.6,6.01142]
[1740255719980,3.61004,2770.1,2769.6,6.01142]
[1740255720170,3.6101,2770.0,2769.6,6.01142]
[1740255720679,3.61025,2769.9,2769.6,6.01142]
[1740255721387,3.61025,2769.9,2769.6,5.39]
[1740255722392,3.61045,2769.8,2769.6,5.39]
[1740255726292,3.61025,2769.9,2769.6,5.39]
[1740255726786,3.61025,2769.9,2769.3,6.4722]
[1740255727089,7.22011,2770.1,2769.3,10.08322]
[1740255727288,7.22011,2770.1,2769.4,1.34424873]
[1740255727530,0.7661,2770.4,2769.7,3.6104]
[1740255727665,5.24,2770.6,2769.9,0.8333]
[1740255727666,3.60956,2770.5,2769.9,0.8333]
[1740255728484,3.60954,2770.5,2769.9,0.8333]
[1740255728690,3.60985,2770.2,2769.9,0.8333]
[1740255729785,3.60984,2770.3,2769.9,0.8333]
[1740255730661,3.60983,2770.3,2769.9,0.8333]
[1740255731057,7.21964,2770.3,2769.9,0.8333]
[1740255731393,3.60984,2770.2,2769.9,0.8333]
[1740255731685,0.961564,2770.4,2769.9,0.8333]
[1740255731889,4.0668294,2770.3,2769.7,1.17136253]
[1740255732089,3.60972,2770.3,2769.8,0.258]
[1740255732280,3.60953,2770.5,2769.9,0.8056]
[1740255735393,7.21911,2770.5,2769.9,0.8056]
[1740255735595,7.21908,2770.5,2769.9,0.8056]
[1740255735796,0.7696,2770.9,2770.0,0.8056]
[1740255735974,4.37866,2770.9,2770.2,0.8056]
[1740255736474,6.60908,2770.8,2770.2,0.8056]
[1740255737058,3.60927,2770.7,2770.2,0.8056]
[1740255737263,4.708065,2770.7,2770.2,0.8056]
[1740255737998,3.60932,2770.6,2770.2,0.8056]
[1740255741968,3.60947,2770.5,2770.2,0.8056]
[1740255743112,3.60948,2770.5,2770.2,0.8056]
[1740255743772,1.098795,2770.7,2770.2,0.8056]
[1740255744100,3.60948,2770.5,2770.2,0.8056]
[1740255745008,3.60935,2770.6,2770.2,0.8056]
[1740255745774,3.60924,2770.7,2770.2,0.8056]
[1740255747377,0.7696,2770.9,2770.3,3.60967]
[1740255747596,3.60908,2770.8,2770.2,0.8056]
[1740255747799,3.60908,2770.8,2770.3,0.441547]
[1740255750710,0.7696,2770.9,2770.3,0.441547]
[1740255751011,0.7726,2771.3,2770.8,0.8071]
[1740255751211,3.0,2771.3,2770.8,0.8071]
[1740255751428,6.60847,2771.3,2770.8,0.8071]
[1740255754741,3.60847,2771.3,2770.8,0.8071]
[1740255754941,3.60854,2771.2,2770.9,0.441626]
[1740255756431,3.60854,2771.2,2770.8,0.8071]
[1740255758352,3.0,2771.3,2770.4,0.8062]
[1740255758519,3.60943,2770.6,2770.4,1.0642]
[1740255759559,4.36543,2771.0,2770.4,1.0642]
[1740255759947,3.60897,2770.9,2770.4,1.0642]
[1740255760730,4.36543,2771.0,2770.4,1.0642]
[1740255760935,3.6091,2770.8,2770.4,1.0642]
[1740255762588,3.60933,2770.6,2770.4,1.0642]
[1740255763553,3.6091,2770.8,2770.4,1.0642]
[1740255766749,4.36547,2771.0,2770.4,4.6737]
[1740255767069,7.97438,2771.0,2770.4,4.6737]
[1740255767470,3.60893,2770.9,2770.4,4.6737]
[1740255768079,3.60893,2770.9,2770.4,1.0642]
[1740255768977,0.7606,2770.7,2769.8,0.7915]
[1740255769144,3.61052,2769.7,2769.5,0.7915]
[1740255769478,3.61023,2769.9,2769.5,0.7915]
[1740255769851,3.61023,2769.9,2769.5,2.508049]
[1740255770050,7.2201,2770.1,2769.5,2.508049]
[1740255770375,3.61002,2770.1,2769.5,6.118719]
[1740255771970,7.22011,2770.1,2769.5,2.508049]
[1740255772170,3.61002,2770.1,2769.5,2.508049]
[1740255772759,3.61002,2770.1,2769.5,6.118789]
[1740255773971,7.21903,2770.5,2769.7,0.8259]
[1740255774266,7.21905,2770.5,2769.9,0.8259]
[1740255774472,3.0,2770.3,2769.9,0.8259]
[1740255775669,3.6099,2770.2,2769.9,0.8259]
[1740255775850,7.21983,2770.2,2769.9,0.8259]
[1740255776055,3.6099,2770.2,2769.9,0.8259]
[1740255776438,7.21985,2770.2,2769.9,0.8259]
[1740255776876,3.6099,2770.2,2769.9,0.8259]
[1740255777455,3.61036,2769.8,2769.7,5.39]
[1740255777645,3.61036,2769.8,2769.6,0.8259]
[1740255780161,3.61049,2769.7,2769.2,9.00107]
[1740255780361,3.61049,2769.7,2769.3,0.8259]
[1740255782594,3.61016,2770.0,2769.3,0.8259]
[1740255782785,7.22036,2770.0,2769.4,4.25827]
[1740255783579,3.61026,2769.9,2769.4,0.64739]
[1740255783770,3.61042,2769.8,2769.3,0.8259]
[1740255784576,3.61042,2769.8,2769.3,4.4369]
[1740255784876,3.61042,2769.8,2769.3,0.8259]
[1740255785047,7.2209,2769.8,2769.3,0.8259]
[1740255785250,3.61042,2769.8,2769.3,0.8259]
[1740255785546,3.61063,2769.6,2769.3,0.8259]
[1740255786373,3.61058,2769.7,2769.3,0.8259]
[1740255786576,3.61042,2769.8,2769.3,2.17033673]
[1740255787886,7.22087,2769.8,2769.3,2.17033673]
[1740255788081,7.22088,2769.8,2769.3,2.17033673]
[1740255788286,3.61042,2769.8,2769.3,2.17033673]
[1740255790467,3.61064,2769.6,2769.3,0.8259]
[1740255791666,3.611,2769.4,2769.2,5.39]
[1740255791873,3.61102,2769.3,2769.2,5.39]
[1740255792268,3.611,2769.4,2769.2,5.39]
[1740255792657,3.61099,2769.4,2769.2,5.39]
[1740255793187,7.22199,2769.4,2769.2,5.39]
[1740255793759,3.61099,2769.4,2769.2,5.39]
[1740255794697,3.61102,2769.3,2769.2,5.39]
[1740255795064,3.61102,2769.3,2768.9,1.10136298]
[1740255797489,4.43792,2769.3,2768.9,1.10136298]
[1740255797896,4.43792,2769.3,2768.9,0.8283]
[1740255798096,8.04902,2769.3,2768.9,0.8283]
[1740255798262,4.43792,2769.3,2768.9,0.8283]
[1740255798461,8.04902,2769.3,2768.9,0.8283]
[1740255798660,0.8269,2769.2,2768.5,7.375]
[1740255798965,0.8269,2769.2,2768.4,6.2183]
[1740255798966,4.43871,2768.7,2768.4,5.39]
[1740255799974,4.43871,2768.7,2768.2,0.8283]
[1740255800291,3.61207,2768.5,2768.2,0.8283]
[1740255801110,3.61207,2768.5,2768.1,0.8283]
[1740255801288,4.43871,2768.7,2768.1,0.8283]
[1740255801289,8.05062,2768.7,2768.1,0.8283]
[1740255802087,3.61195,2768.6,2768.1,0.8283]
[1740255803507,3.61195,2768.6,2768.1,1.10638725]
[1740255803816,3.61195,2768.6,2768.1,0.8283]
[1740255808207,3.61195,2768.6,2768.1,1.10082551]
[1740255809276,3.6121,2768.5,2768.1,1.10082551]
[1740255809475,7.224,2768.6,2768.1,1.10082551]
[1740255809675,3.61195,2768.6,2768.1,1.10082551]
[1740255809888,3.61218,2768.5,2768.1,1.10082551]
[1740255813624,3.61218,2768.5,2768.1,0.8283]
[1740255813789,3.61228,2768.4,2768.0,5.39]
[1740255813980,3.61232,2768.3,2768.0,5.39]
[1740255815615,3.61232,2768.3,2767.9,4.12996728]
[1740255815790,3.61252,2768.2,2767.9,0.7707]
[1740255816611,4.38742,2768.3,2767.9,0.7707]
[1740255816983,3.61232,2768.3,2767.9,0.7707]
[1740255817180,3.61219,2768.4,2767.9,0.7707]
[1740255818787,3.61236,2768.3,2767.9,0.7707]
[1740255822213,4.38723,2768.5,2767.9,0.7707]
[1740255822416,7.99937,2768.5,2767.9,0.7707]
[1740255822612,3.6122,2768.4,2767.9,0.7707]
[1740255822797,7.99934,2768.5,2767.9,0.7707]
[1740255822998,4.38719,2768.5,2767.9,0.7707]
[1740255823509,7.99934,2768.5,2767.9,0.7707]
[1740255823710,4.38719,2768.5,2767.9,0.7707]
[1740255823916,3.61184,2768.7,2768.0,3.6126]
[1740255824105,3.61184,2768.7,2768.1,0.8072]
[1740255824512,3.61184,2768.7,2768.2,0.73321803]
[1740255824827,3.61184,2768.7,2768.2,2.36375299]
[1740255825430,3.61262,2768.1,2767.8,0.8072]
[1740255825833,0.8036,2768.2,2767.8,0.8072]
[1740255825834,4.41609,2768.2,2767.8,0.8072]
[1740255826120,4.41609,2768.2,2767.8,2.43773496]
[1740255826525,0.8036,2768.2,2767.8,2.43773496]
[1740255826724,4.41571,2768.5,2768.0,1.63053496]
[1740255826895,0.3973294,2768.4,2768.0,1.63053496]
[1740255827927,4.0095294,2768.4,2768.0,1.63053496]
[1740255828229,4.41932,2768.7,2768.1,0.7733]
[1740255828432,5.24166496,2769.3,2768.2,1.63053496]
[1740255828433,4.41909,2768.9,2768.2,1.63053496]
[1740255828631,4.41909,2768.9,2768.2,5.24294496]
[1740255829003,3.61169,2768.8,2768.2,5.24294496]
[1740255829198,3.61169,2768.8,2768.2,1.63053496]
[1740255829935,3.61182,2768.7,2768.2,1.63053496]
[1740255830629,3.61182,2768.7,2768.1,4.38579]
[1740255830936,3.61182,2768.7,2768.1,0.7733]
[1740255831139,4.414913,2768.7,2768.1,0.7733]
[1740255831630,8.026823,2768.7,2768.1,0.7733]
[1740255832012,4.414913,2768.7,2768.1,0.7733]
[1740255832235,3.61193,2768.6,2768.1,0.7733]
[1740255833929,3.61193,2768.6,2768.3,0.26747921]
[1740255835958,3.61169,2768.8,2768.3,0.26747921]
[1740255836153,4.41909,2768.9,2768.4,0.7994]
[1740255836759,5.160999,2768.9,2768.4,0.7994]
[1740255837112,3.61148,2769.0,2768.4,4.41152]
[1740255837822,3.61148,2769.0,2768.4,4.41151]
[1740255839959,4.38174,2769.4,2768.8,3.61163]
[1740255840142,4.049194,2769.3,2768.7,0.7994]
[1740255840345,3.61104,2769.3,2768.7,4.41108]
[1740255840516,3.61117,2769.2,2768.7,4.41108]
[1740255842272,3.61117,2769.2,2768.7,0.7994]
[1740255842683,7.22243,2769.2,2768.7,0.7994]
[1740255842880,3.61117,2769.2,2768.7,0.7994]
[1740255843444,3.61117,2769.2,2768.7,1.44767552]
[1740255843671,0.7708,2769.4,2768.5,0.7994]
[1740255843946,3.6118,2768.7,2768.5,0.7994]
[1740255845575,7.2232,2768.9,2768.5,0.7994]
[1740255845781,3.61169,2768.8,2768.5,0.7994]
[1740255849284,3.61181,2768.7,2768.5,0.7994]
[1740255850679,3.61155,2768.9,2768.5,0.7994]
[1740255851063,3.61155,2768.9,2768.5,4.16231989]
[1740255851264,3.61155,2768.9,2768.5,5.5055098]
[1740255851785,3.61103,2769.3,2768.6,0.8079]
[1740255851966,3.61115,2769.2,2768.7,4.4197]
[1740255852160,3.61103,2769.3,2768.7,4.4197]
[1740255852764,3.61103,2769.3,2768.9,0.8079]
[1740255853291,3.0,2769.4,2768.9,0.8079]
[1740255853859,6.61096,2769.4,2768.9,0.8079]
[1740255854076,3.0,2769.4,2768.9,0.8079]
[1740255854281,7.37634,2769.7,2768.9,4.86141]
[1740255854484,7.37634,2769.7,2769.1,0.8312]
[1740255854485,3.61064,2769.6,2769.1,0.8312]
[1740255854672,3.0,2769.5,2769.1,0.8312]
[1740255854857,6.61078,2769.5,2769.1,0.8312]
[1740255855058,3.61102,2769.3,2769.1,0.8312]
[1740255857497,3.61102,2769.3,2768.9,7.85102622]
[1740255858566,3.61127,2769.2,2768.9,7.85102622]
[1740255859289,3.61102,2769.3,2768.9,7.85102622]
[1740255860100,1.809484,2769.3,2768.9,5.39]
[1740255860289,3.61141,2769.0,2768.9,5.39]
[1740255860489,3.61141,2769.0,2768.5,2.71902622]
[1740255861195,3.61135,2769.1,2768.5,6.33101622]
[1740255861400,3.61135,2769.1,2768.7,1.62982622]
[1740255862071,8.00947,2769.3,2768.7,1.62982622]
[1740255862302,0.7873,2769.5,2768.9,5.24132622]
[1740255862496,0.7873,2769.5,2769.1,1.62982622]
[1740255862904,4.39806,2769.5,2769.1,1.62982622]
[1740255863884,3.61076,2769.5,2769.2,0.8312]
[1740255864505,3.0,2769.6,2769.2,0.8312]
[1740255864871,6.61064,2769.6,2769.2,0.8312]
[1740255869321,7.39781,2769.7,2769.2,0.8312]
[1740255870011,6.61051,2769.7,2769.2,0.8312]
[1740255870223,3.55543881,2769.8,2769.3,3.61092]
[1740255871022,3.55543881,2769.8,2769.2,4.91414278]
[1740255871318,3.55543881,2769.8,2769.2,8.52521278]
[1740255871530,3.55543881,2769.8,2769.3,3.611]
[1740255873207,3.55543881,2769.8,2769.4,0.7574]
[1740255874324,3.55543881,2769.8,2769.4,4.36828]
[1740255874937,3.55543881,2769.8,2769.4,0.7574]
[1740255876452,3.55543881,2769.8,2769.4,1.60253428]
[1740255876599,3.55543881,2769.8,2769.4,5.21334428]
[1740255877322,7.16588881,2769.8,2769.4,1.60253428]
[1740255877520,7.16588881,2769.8,2769.4,0.7574]
[1740255878711,3.61051,2769.7,2769.4,0.7574]
[1740255878913,7.16588881,2769.8,2769.4,0.7574]
[1740255879118,3.61063,2769.6,2769.4,0.7574]
[1740255879451,7.16588881,2769.8,2769.4,0.7574]
[1740255880025,3.61051,2769.7,2769.4,0.7574]
[1740255881347,3.61066,2769.6,2769.4,0.7574]
[1740255881554,3.61077,2769.5,2769.2,0.27790637]
[1740255882042,0.802,2769.7,2769.0,5.39]
[1740255882043,3.61089,2769.4,2769.0,5.39]
[1740255884552,3.61089,2769.4,2769.1,0.26502618]
[1740255884912,3.61089,2769.4,2769.0,5.39]
[1740255886249,3.61069,2769.6,2769.0,5.39]
[1740255886639,0.802,2769.7,2769.2,0.7574]
[1740255887443,4.41252,2769.7,2769.2,0.7574]
[1740255887820,3.61063,2769.6,2769.2,0.7574]
[1740255888021,4.41254,2769.7,2769.2,0.7574]
[1740255888263,0.802,2769.7,2769.2,0.7574]
[1740255888424,3.61064,2769.6,2769.2,0.7574]
[1740255891456,0.802,2769.7,2769.2,0.7574]
[1740255891824,4.41259,2769.7,2769.2,0.7574]
[1740255892021,5.57043488,2769.7,2769.2,0.7574]
[1740255893350,7.16585881,2769.8,2769.2,0.7574]
[1740255893558,7.16585881,2769.8,2769.3,1.62974453]
[1740255893861,7.16585881,2769.8,2769.2,4.36846]
[1740255898330,7.16585881,2769.8,2769.2,0.7574]
[1740255898529,3.6105,2769.7,2769.2,0.7574]
[1740255898746,7.16585881,2769.8,2769.2,0.7574]
[1740255898747,3.61065,2769.6,2769.2,0.7574]
[1740255898949,7.16585881,2769.8,2769.2,0.7574]
[1740255899125,10.77629881,2769.8,2769.2,2.2846094]
[1740255899329,3.61055,2769.7,2769.2,2.2846094]
[1740255899531,0.7588,2772.0,2770.1,0.8266]
[1740255899733,3.60709,2772.4,2771.9,1.62974453]
[1740255899967,3.60713,2772.3,2771.9,3.57352344]
[1740255900181,3.0,2772.3,2772.2,1.62974453]
[1740255900490,4.36565,2772.5,2772.0,1.62974453]
[1740255900631,3.60711,2772.3,2771.7,3.35420434]
[1740255900838,0.7588,2772.5,2771.3,1.53863847]
[1740255901046,0.7588,2772.0,2771.3,4.18080434]
[1740255901249,0.7588,2772.4,2771.9,3.35420434]
[1740255901554,3.60693,2772.5,2771.9,4.18080434]
[1740255902072,3.60712,2772.3,2771.9,4.18080434]
[1740255903034,3.60693,2772.5,2771.9,4.18080434]
[1740255903279,3.60735,2772.2,2771.9,4.18080434]
[1740255903492,3.6075,2772.0,2771.9,4.18080434]
[1740255903927,3.6075,2772.0,2771.9,0.8266]
[1740255904131,3.60815,2771.5,2771.3,6.4806]
[1740255904356,3.60815,2771.5,2771.3,1.0906]
[1740255908086,3.60815,2771.5,2771.3,0.8266]
[1740255910099,4.5417302,2772.8,2771.7,0.7538]
[1740255910299,7.21443,2772.3,2772.0,3.35420434]
[1740255910498,3.60721,2772.3,2772.0,3.61920434]
[1740255911002,3.60724,2772.2,2772.0,3.61920434]
[1740255911180,3.60712,2772.3,2772.0,3.61920434]
[1740255914003,3.60691,2772.5,2772.1,0.7867]
[1740255914302,3.60724,2772.2,2772.1,0.7867]
[1740255914913,3.60737,2772.1,2772.0,0.265]
[1740255916196,3.60712,2772.3,2772.0,0.265]
[1740255917085,7.21432,2772.3,2772.0,0.265]
[1740255917386,3.60712,2772.3,2772.0,0.265]
[1740255917864,4.0130083,2772.5,2772.0,0.265]
[1740255918069,7.21386,2772.5,2772.0,0.265]
[1740255918902,3.607,2772.4,2772.0,0.265]
[1740255920103,3.60663,2772.7,2772.0,4.338371]
[1740255920293,3.60665,2772.7,2772.1,4.39398]
[1740255920801,0.1486102,2772.8,2772.3,3.35420434]
[1740255921001,3.60679,2772.6,2772.3,3.35420434]
[1740255921200,3.60687,2772.5,2772.3,3.35420434]
[1740255921985,3.60672,2772.6,2772.3,3.35420434]
[1740255922173,3.60668,2772.7,2772.3,4.30729477]
[1740255923424,3.7550702,2772.8,2772.3,4.30729477]
[1740255924210,3.60685,2772.6,2772.3,4.30729477]
[1740255924986,3.60691,2772.5,2772.3,4.30729477]
[1740255925524,3.60698,2772.4,2772.3,4.30729477]
[1740255927015,3.60691,2772.5,2772.3,4.30729477]
[1740255927198,3.60698,2772.4,2772.3,4.30729477]
[1740255928329,3.60691,2772.5,2772.3,4.30729477]
[1740255928531,7.21387,2772.5,2772.3,4.30729477]
[1740255929146,3.60664,2772.7,2772.4,1.04839948]
[1740255929320,3.6068,2772.6,2772.4,1.04839948]
[1740255930636,3.60664,2772.7,2772.4,1.04839948]
[1740255931256,3.60664,2772.7,2772.2,6.1767]
[1740255931531,3.6075,2772.0,2771.9,5.39]
[1740255931708,3.60763,2771.9,2771.8,0.7559]
[1740255931913,3.60789,2771.8,2771.6,0.7559]
[1740255932809,3.60789,2771.8,2771.7,0.26988784]
[1740255933301,8.147831,2771.8,2771.7,0.26988784]
[1740255934230,7.42629,2771.8,2771.7,0.26988784]
[1740255934536,3.60823,2771.5,2771.3,0.11292625]
[1740255934941,3.60828,2771.4,2771.1,3.35420434]
[1740255935530,3.60831,2771.4,2771.1,3.35420434]
[1740255935731,3.60852,2771.3,2771.1,3.35420434]
[1740255936056,3.60852,2771.3,2771.1,4.22862477]
[1740255936360,3.60852,2771.3,2771.2,0.11293123]
[1740255936956,4.42692,2771.3,2771.2,0.11293123]
[1740255937133,0.8184,2771.3,2771.2,0.11293123]
[1740255937335,3.60841,2771.3,2771.2,0.11293123]
[1740255937526,3.60841,2771.3,2770.7,4.22753557]
[1740255937727,3.60809,2771.6,2770.8,5.00470789]
[1740255937957,3.60818,2771.5,2771.0,6.96300434]
[1740255938165,3.60809,2771.6,2771.0,3.35420434]
[1740255939180,3.60809,2771.6,2771.1,0.7604]
[1740255939338,3.60759,2772.0,2771.4,3.60819]
[1740255939656,3.60759,2772.0,2771.6,3.35420434]
[1740255939868,3.60763,2771.9,2771.6,3.35420434]
[1740255940380,3.60785,2771.8,2771.6,3.35420434]
[1740255940947,3.60802,2771.6,2771.4,5.39]
[1740255941149,3.60802,2771.6,2771.4,6.26442043]
[1740255942637,3.60802,2771.6,2771.4,5.39]
[1740255943814,3.60802,2771.6,2771.3,3.61820434]
[1740255944215,3.60785,2771.8,2771.3,3.61820434]
[1740255944581,7.2157,2771.8,2771.3,3.61820434]
[1740255944785,3.60785,2771.8,2771.3,3.61820434]
[1740255944985,3.6079,2771.7,2771.4,0.90082043]
[1740255946217,0.8184,2772.3,2771.7,0.7604]
[1740255946387,8.03279,2772.3,2771.9,3.35420434]
[1740255946797,3.60724,2772.2,2771.9,3.35420434]
[1740255947731,3.60741,2772.1,2771.7,0.7604]
[1740255947901,3.60741,2772.1,2771.7,1.53265443]
[1740255948389,8.03281,2772.3,2771.7,1.53265443]
[1740255948595,4.42559,2772.3,2771.7,5.14045443]
[1740255948797,3.60719,2772.3,2771.7,5.14052443]
[1740255949022,3.60719,2772.3,2771.8,1.21026588]
[1740255949230,3.60689,2772.5,2771.9,6.96176434]
[1740255950510,3.60689,2772.5,2772.0,3.60745]
[1740255950897,7.21385,2772.5,2771.9,3.35420434]
[1740255951098,3.60701,2772.4,2771.9,3.35420434]
[1740255951301,3.60701,2772.4,2772.0,0.52788024]
[1740255952411,3.60689,2772.5,2772.0,0.52788024]
[1740255952893,7.21384,2772.5,2772.0,0.52788024]
[1740255953097,3.60712,2772.3,2772.0,0.52788024]
[1740255954012,3.60724,2772.2,2772.0,0.52788024]
[1740255954209,3.60712,2772.3,2772.0,0.52788024]
[1740255954418,3.60732,2772.2,2772.0,0.52788024]
[1740255955232,3.60753,2772.0,2771.8,5.27880237]
[1740255956608,4.38566,2772.6,2771.8,8.88644237]
[1740255956801,3.60676,2772.6,2771.9,0.7811]
[1740255957005,3.60695,2772.5,2771.9,4.38862]
[1740255957225,3.60695,2772.5,2772.0,1.32750624]
[1740255961434,3.60695,2772.5,2772.0,6.71750624]
[1740255961842,3.60714,2772.3,2772.0,6.71750624]
[1740255962043,3.60714,2772.3,2772.0,6.97950624]
[1740255962241,3.60736,2772.2,2772.0,6.97950624]
[1740255962540,3.60734,2772.2,2772.0,6.71750624]
[1740255962919,3.60737,2772.1,2772.0,5.39]
[1740255966642,3.60763,2771.9,2771.8,0.71433215]
[1740255966819,3.60763,2771.9,2771.5,3.35420434]
[1740255966820,3.60785,2771.8,2771.5,3.35420434]
[1740255967007,3.60789,2771.7,2771.5,3.35420434]
[1740255967215,3.60789,2771.7,2771.5,3.80317911]
[1740255969447,3.60789,2771.7,2771.5,3.35420434]
[1740255969835,3.60802,2771.6,2771.5,3.35420434]
[1740255970040,3.60828,2771.4,2771.3,5.39]
[1740255970243,3.60815,2771.5,2771.3,5.39]
[1740255970540,3.60815,2771.5,2771.3,6.44508772]
[1740255971056,3.60815,2771.5,2771.3,5.39]
[1740255971929,3.60828,2771.4,2771.3,5.39]
[1740255972997,3.60815,2771.5,2771.3,5.39]
[1740255973453,3.60802,2771.6,2771.3,5.39]
[1740255974727,3.60796,2771.7,2771.3,5.39]
[1740255974955,7.21597,2771.7,2771.3,5.39]
[1740255975154,3.60796,2771.7,2771.3,5.39]
[1740255975941,3.60823,2771.5,2771.3,5.39]
[1740255976254,7.2165,2771.5,2771.3,5.39]
[1740255976452,3.60823,2771.5,2771.2,4.08057716]
[1740255976652,3.60841,2771.3,2771.2,3.35420434]
[1740255976857,3.60823,2771.5,2771.2,3.35420434]
[1740255977036,7.21648,2771.5,2771.2,3.35420434]
[1740255977561,3.60823,2771.5,2771.2,3.35420434]
[1740255977862,3.60836,2771.4,2771.2,3.35420434]
[1740255979050,3.60797,2771.7,2771.2,3.35420434]
[1740255979426,3.6082,2771.5,2771.2,3.35420434]
[1740255980068,3.60829,2771.4,2771.2,3.35420434]
[1740255982462,3.60841,2771.3,2771.2,3.35420434]
[1740255982662,3.60841,2771.3,2771.0,5.39]
[1740255983367,3.60857,2771.2,2771.0,5.39]
[1740255986469,0.7869,2772.2,2771.5,4.42479]
[1740255986635,3.60733,2772.2,2771.6,3.60798]
[1740255986838,3.60733,2772.2,2771.6,3.86898]
[1740255988986,3.60733,2772.2,2771.6,0.261]
[1740255989138,3.60762,2772.0,2771.6,1.268577]
[1740255989560,3.60762,2772.0,2771.7,3.35420434]
[1740255990971,3.6073,2772.2,2771.7,3.35420434]